[Event "Titled Tuesday Blitz June 28 Early 2022"]
[White "Sadykov, Ramil"]
[Black "Gurevich, Dmitry"]
[WhiteFideId "24113590"]
[BlackFideId "2000407"]
[WhiteElo "2226"]
[BlackElo "2506"]
[Result "1/2-1/2"]
[Round "11"]
[TimeControl "180+1"]
[Date "2022.06.28"]
[WhiteClock "0:00:01"]
[BlackClock "0:00:02"]

1. e4 {[%clk 0:03:00]}  c5 {[%clk 0:02:59]} 2. Nc3 {[%clk 0:02:55]}  g6 {[%clk 0:02:58]} 3. g3 {[%clk 0:02:53]}  Bg7 {[%clk 0:02:58]} 4. Bg2 {[%clk 0:02:53]}  Nc6 {[%clk 0:02:58]} 5. d3 {[%clk 0:02:53]}  d6 {[%clk 0:02:57]} 6. Be3 {[%clk 0:02:54]}  b5 {[%clk 0:02:56]} 7. Qd2 {[%clk 0:02:50]}  b4 {[%clk 0:02:55]} 8. Nd1 {[%clk 0:02:51]}  h5 {[%clk 0:02:52]} 9. h4 {[%clk 0:02:48]}  Nf6 {[%clk 0:02:51]} 10. f3 {[%clk 0:02:39]}  a5 {[%clk 0:02:46]} 11. a3 {[%clk 0:02:39]}  Ba6 {[%clk 0:02:40]} 12. axb4 {[%clk 0:02:38]}  axb4 {[%clk 0:02:40]} 13. Ne2 {[%clk 0:02:36]}  O-O {[%clk 0:02:37]} 14. O-O {[%clk 0:02:33]}  Ne5 {[%clk 0:02:34]} 15. Bh6 {[%clk 0:02:29]}  c4 {[%clk 0:02:33]} 16. Bxg7 {[%clk 0:02:22]}  Kxg7 {[%clk 0:02:32]} 17. d4 {[%clk 0:02:11]}  c3 {[%clk 0:02:30]} 18. bxc3 {[%clk 0:02:04]}  Nc4 {[%clk 0:02:30]} 19. Qe1 {[%clk 0:01:48]}  bxc3 {[%clk 0:02:28]} 20. Nexc3 {[%clk 0:01:49]}  Qb6 {[%clk 0:02:23]} 21. Qf2 {[%clk 0:01:49]}  e5 {[%clk 0:02:16]} 22. dxe5 {[%clk 0:01:40]}  dxe5 {[%clk 0:02:14]} 23. Qxb6 {[%clk 0:01:38]}  Nxb6 {[%clk 0:02:13]} 24. Re1 {[%clk 0:01:39]}  Rfc8 {[%clk 0:02:10]} 25. f4 {[%clk 0:01:37]}  Ng4 {[%clk 0:02:06]} 26. Rb1 {[%clk 0:01:33]}  Nc4 {[%clk 0:01:57]} 27. Nd5 {[%clk 0:01:33]}  Nd2 {[%clk 0:01:48]} 28. Ra1 {[%clk 0:01:27]}  Rxc2 {[%clk 0:01:37]} 29. Nb4 {[%clk 0:01:27]}  Rb2 {[%clk 0:01:23]} 30. Rxa6 {[%clk 0:01:06]}  Rxa6 {[%clk 0:01:20]} 31. Nxa6 {[%clk 0:01:07]}  Rb1 {[%clk 0:01:15]} 32. Nc5 {[%clk 0:01:06]}  Nc4 {[%clk 0:01:04]} 33. Nd3 {[%clk 0:01:04]}  Rb3 {[%clk 0:00:57]} 34. N1f2 {[%clk 0:00:44]}  Nxf2 {[%clk 0:00:54]} 35. Nxf2 {[%clk 0:00:43]}  Rxg3 {[%clk 0:00:54]} 36. fxe5 {[%clk 0:00:37]}  Nxe5 {[%clk 0:00:52]} 37. Kh2 {[%clk 0:00:36]}  Rc3 {[%clk 0:00:48]} 38. Rd1 {[%clk 0:00:30]}  Rc2 {[%clk 0:00:45]} 39. Kg3 {[%clk 0:00:30]}  Rc3+ {[%clk 0:00:44]} 40. Kf4 {[%clk 0:00:29]}  f6 {[%clk 0:00:42]} 41. Rd2 {[%clk 0:00:26]}  Kf7 {[%clk 0:00:39]} 42. Nd1 {[%clk 0:00:22]}  Rb3 {[%clk 0:00:36]} 43. Ne3 {[%clk 0:00:21]}  Nd3+ {[%clk 0:00:34]} 44. Kg3 {[%clk 0:00:16]}  Ne5 {[%clk 0:00:28]} 45. Kf2 {[%clk 0:00:17]}  g5 {[%clk 0:00:25]} 46. hxg5 {[%clk 0:00:16]}  fxg5 {[%clk 0:00:24]} 47. Bf1 {[%clk 0:00:12]}  h4 {[%clk 0:00:23]} 48. Nc4 {[%clk 0:00:06]}  Ng4+ {[%clk 0:00:20]} 49. Kg1 {[%clk 0:00:05]}  h3 {[%clk 0:00:19]} 50. Nd6+ {[%clk 0:00:04]}  Kf6 {[%clk 0:00:14]} 51. Nf5 {[%clk 0:00:05]}  Rf3 {[%clk 0:00:09]} 52. Nd4 {[%clk 0:00:05]}  h2+ {[%clk 0:00:08]} 53. Rxh2 {[%clk 0:00:01]}  Rxf1+ {[%clk 0:00:05]} 54. Kxf1 {[%clk 0:00:02]}  Nxh2+ {[%clk 0:00:05]} 55. Kg1 {[%clk 0:00:03]}  Ng4 {[%clk 0:00:05]} 56. Kg2 {[%clk 0:00:04]}  Ne5 {[%clk 0:00:06]} 57. Kg3 {[%clk 0:00:03]}  Nc4 {[%clk 0:00:06]} 58. Nf3 {[%clk 0:00:03]}  Ne5 {[%clk 0:00:05]} 59. Nh2 {[%clk 0:00:02]}  Nd3 {[%clk 0:00:04]} 60. Ng4+ {[%clk 0:00:03]}  Ke6 {[%clk 0:00:04]} 61. Kf3 {[%clk 0:00:04]}  Nc5 {[%clk 0:00:04]} 62. Ke3 {[%clk 0:00:02]}  Nd7 {[%clk 0:00:04]} 63. Nf2 {[%clk 0:00:01]}  Ne5 {[%clk 0:00:03]} 64. Kd4 {[%clk 0:00:01]}  Nf3+ {[%clk 0:00:03]} 65. Ke3 {[%clk 0:00:02]}  Nh4 {[%clk 0:00:03]} 66. Nh3 {[%clk 0:00:01]}  Ng2+ {[%clk 0:00:03]} 67. Kf3 {[%clk 0:00:02]}  Nh4+ {[%clk 0:00:03]} 68. Kg4 {[%clk 0:00:02]}  Ng6 {[%clk 0:00:02]} 69. Nxg5+ {[%clk 0:00:02]}  Ke5 {[%clk 0:00:02]} 70. Kf3 {[%clk 0:00:03]}  Nh4+ {[%clk 0:00:01]} 71. Ke3 {[%clk 0:00:03]}  Nf5+ {[%clk 0:00:02]} 72. Kf3 {[%clk 0:00:03]}  Nd4+ {[%clk 0:00:02]} 73. Ke3 {[%clk 0:00:03]}  Nf5+ {[%clk 0:00:02]} 74. Kd3 {[%clk 0:00:04]}  Nd6 {[%clk 0:00:02]} 75. Nf3+ {[%clk 0:00:03]}  Kf4 {[%clk 0:00:03]} 76. e5 {[%clk 0:00:02]}  Nf5 {[%clk 0:00:03]} 77. Nd4 {[%clk 0:00:01]}  Kxe5 {[%clk 0:00:02]} 1/2-1/2


[Site "https://www.chess.com"]

[Event "Titled Tuesday Blitz June 28 Early 2022"]
[White "Samunenkov, Ihor"]
[Black "Kamsky, Gata"]
[WhiteFideId "14187086"]
[BlackFideId "2000024"]
[WhiteElo "2409"]
[BlackElo "2645"]
[Result "0-1"]
[Round "11"]
[TimeControl "180+1"]
[Date "2022.06.28"]
[WhiteClock "0:00:01"]
[BlackClock "0:00:12"]

1. e4 {[%clk 0:03:00]}  e5 {[%clk 0:02:55]} 2. Nf3 {[%clk 0:03:00]}  Nc6 {[%clk 0:02:54]} 3. Bb5 {[%clk 0:03:00]}  Nf6 {[%clk 0:02:52]} 4. O-O {[%clk 0:03:01]}  Nxe4 {[%clk 0:02:51]} 5. Re1 {[%clk 0:03:00]}  Nd6 {[%clk 0:02:44]} 6. Nxe5 {[%clk 0:03:01]}  Be7 {[%clk 0:02:42]} 7. Bf1 {[%clk 0:03:00]}  Nf5 {[%clk 0:02:32]} 8. Nf3 {[%clk 0:02:49]}  O-O {[%clk 0:02:31]} 9. d4 {[%clk 0:02:49]}  d5 {[%clk 0:02:29]} 10. Nc3 {[%clk 0:02:48]}  Bb4 {[%clk 0:02:23]} 11. Bb5 {[%clk 0:02:38]}  Nce7 {[%clk 0:02:21]} 12. Bd3 {[%clk 0:02:14]}  Ng6 {[%clk 0:02:12]} 13. Bd2 {[%clk 0:02:07]}  c6 {[%clk 0:02:09]} 14. Ne2 {[%clk 0:02:02]}  Bd6 {[%clk 0:02:07]} 15. c3 {[%clk 0:01:57]}  Nfh4 {[%clk 0:01:41]} 16. Ng3 {[%clk 0:01:30]}  Bg4 {[%clk 0:01:36]} 17. Be2 {[%clk 0:01:30]}  Nxf3+ {[%clk 0:01:33]} 18. Bxf3 {[%clk 0:01:31]}  Bxf3 {[%clk 0:01:32]} 19. Qxf3 {[%clk 0:01:32]}  Bxg3 {[%clk 0:01:29]} 20. Qxg3 {[%clk 0:01:29]}  Qd7 {[%clk 0:01:29]} 21. Re2 {[%clk 0:01:11]}  Rfe8 {[%clk 0:01:25]} 22. Rae1 {[%clk 0:01:12]}  Rxe2 {[%clk 0:01:21]} 23. Rxe2 {[%clk 0:01:13]}  f6 {[%clk 0:01:19]} 24. h4 {[%clk 0:00:55]}  Kf7 {[%clk 0:01:18]} 25. h5 {[%clk 0:00:54]}  Nf8 {[%clk 0:01:12]} 26. Qf3 {[%clk 0:00:50]}  Re8 {[%clk 0:01:10]} 27. Rxe8 {[%clk 0:00:48]}  Qxe8 {[%clk 0:01:09]} 28. Kf1 {[%clk 0:00:49]}  Qe6 {[%clk 0:01:07]} 29. Be3 {[%clk 0:00:48]}  Nd7 {[%clk 0:01:04]} 30. Qf4 {[%clk 0:00:47]}  Qe7 {[%clk 0:00:56]} 31. Ke2 {[%clk 0:00:38]}  Nb6 {[%clk 0:00:52]} 32. b3 {[%clk 0:00:38]}  a6 {[%clk 0:00:47]} 33. Kd3 {[%clk 0:00:36]}  Nc8 {[%clk 0:00:46]} 34. a4 {[%clk 0:00:25]}  Nd6 {[%clk 0:00:45]} 35. f3 {[%clk 0:00:25]}  Qe6 {[%clk 0:00:44]} 36. g4 {[%clk 0:00:23]}  f5 {[%clk 0:00:36]} 37. Bc1 {[%clk 0:00:22]}  Qf6 {[%clk 0:00:20]} 38. Ba3 {[%clk 0:00:16]}  Ne8 {[%clk 0:00:18]} 39. gxf5 {[%clk 0:00:05]}  Qd8 {[%clk 0:00:18]} 40. h6 {[%clk 0:00:03]}  Qd7 {[%clk 0:00:18]} 41. hxg7 {[%clk 0:00:03]}  Nxg7 {[%clk 0:00:18]} 42. f6 {[%clk 0:00:03]}  Qf5+ {[%clk 0:00:18]} 43. Ke3 {[%clk 0:00:03]}  Qxf4+ {[%clk 0:00:18]} 44. Kxf4 {[%clk 0:00:04]}  Kxf6 {[%clk 0:00:18]} 45. Bd6 {[%clk 0:00:04]}  Nf5 {[%clk 0:00:18]} 46. Be5+ {[%clk 0:00:04]}  Kg6 {[%clk 0:00:18]} 47. a5 {[%clk 0:00:03]}  h5 {[%clk 0:00:18]} 48. Bc7 {[%clk 0:00:03]}  Kf6 {[%clk 0:00:18]} 49. Be5+ {[%clk 0:00:03]}  Kg6 {[%clk 0:00:18]} 50. Bc7 {[%clk 0:00:04]}  h4 {[%clk 0:00:17]} 51. Kg4 {[%clk 0:00:03]}  Ne3+ {[%clk 0:00:18]} 52. Kxh4 {[%clk 0:00:03]}  Kf5 {[%clk 0:00:18]} 53. Kg3 {[%clk 0:00:02]}  Nd1 {[%clk 0:00:18]} 54. c4 {[%clk 0:00:02]}  Ne3 {[%clk 0:00:17]} 55. cxd5 {[%clk 0:00:01]}  Nxd5 {[%clk 0:00:16]} 56. Be5 {[%clk 0:00:01]}  Ne3 {[%clk 0:00:16]} 57. Kf2 {[%clk 0:00:01]}  Nd5 {[%clk 0:00:16]} 58. Ke2 {[%clk 0:00:01]}  Nb4 {[%clk 0:00:16]} 59. Ke3 {[%clk 0:00:01]}  Nd5+ {[%clk 0:00:16]} 60. Kd3 {[%clk 0:00:02]}  Nb4+ {[%clk 0:00:16]} 61. Kc4 {[%clk 0:00:02]}  Nd5 {[%clk 0:00:17]} 62. Kc5 {[%clk 0:00:03]}  Ke6 {[%clk 0:00:17]} 63. f4 {[%clk 0:00:04]}  Kf5 {[%clk 0:00:13]} 64. Kd6 {[%clk 0:00:02]}  Ke4 {[%clk 0:00:12]} 65. Kd7 {[%clk 0:00:01]}  b6 {[%clk 0:00:12]} 0-1


[Site "https://www.chess.com"]

[Event "Titled Tuesday Blitz June 28 Early 2022"]
[White "Sanchez, Robert"]
[Black "Mickiewicz, Piotr"]
[WhiteFideId "2034360"]
[BlackFideId "1114891"]
[WhiteElo "2082"]
[BlackElo "2209"]
[Result "1-0"]
[Round "11"]
[TimeControl "180+1"]
[Date "2022.06.28"]
[WhiteClock "0:00:16"]
[BlackClock "0:00:01"]

1. e4 {[%clk 0:03:00]}  c5 {[%clk 0:02:59]} 2. Nf3 {[%clk 0:03:01]}  d6 {[%clk 0:02:59]} 3. d4 {[%clk 0:03:01]}  cxd4 {[%clk 0:03:00]} 4. Nxd4 {[%clk 0:03:02]}  Nf6 {[%clk 0:03:00]} 5. Nc3 {[%clk 0:03:02]}  e6 {[%clk 0:03:01]} 6. Be3 {[%clk 0:03:02]}  a6 {[%clk 0:03:00]} 7. f3 {[%clk 0:03:02]}  b5 {[%clk 0:02:58]} 8. Qd2 {[%clk 0:03:02]}  Nbd7 {[%clk 0:02:58]} 9. O-O-O {[%clk 0:03:03]}  Bb7 {[%clk 0:02:57]} 10. g4 {[%clk 0:03:03]}  Nb6 {[%clk 0:02:56]} 11. g5 {[%clk 0:03:02]}  Nfd7 {[%clk 0:02:56]} 12. Bd3 {[%clk 0:03:01]}  Rc8 {[%clk 0:02:54]} 13. h4 {[%clk 0:03:00]}  Ne5 {[%clk 0:02:51]} 14. b3 {[%clk 0:02:57]}  Qc7 {[%clk 0:02:43]} 15. Nce2 {[%clk 0:02:55]}  d5 {[%clk 0:02:36]} 16. Kb1 {[%clk 0:02:41]}  dxe4 {[%clk 0:02:32]} 17. Bxe4 {[%clk 0:02:39]}  Bxe4 {[%clk 0:02:28]} 18. fxe4 {[%clk 0:02:39]}  Bc5 {[%clk 0:02:12]} 19. h5 {[%clk 0:02:27]}  O-O {[%clk 0:02:10]} 20. g6 {[%clk 0:02:25]}  Nbc4 {[%clk 0:01:59]} 21. bxc4 {[%clk 0:02:24]}  Nxc4 {[%clk 0:02:00]} 22. Qc3 {[%clk 0:02:21]}  Nxe3 {[%clk 0:02:00]} 23. Qxe3 {[%clk 0:02:20]}  e5 {[%clk 0:01:59]} 24. gxh7+ {[%clk 0:02:14]}  Kh8 {[%clk 0:01:59]} 25. h6 {[%clk 0:02:11]}  g6 {[%clk 0:01:47]} 26. Qf3 {[%clk 0:02:06]}  Be7 {[%clk 0:01:46]} 27. Nb3 {[%clk 0:01:52]}  Qxc2+ {[%clk 0:01:45]} 28. Ka1 {[%clk 0:01:53]}  Qc4 {[%clk 0:01:27]} 29. Rc1 {[%clk 0:01:44]}  Qe6 {[%clk 0:01:26]} 30. Rxc8 {[%clk 0:01:34]}  Rxc8 {[%clk 0:01:26]} 31. Rf1 {[%clk 0:01:34]}  f6 {[%clk 0:01:23]} 32. Nc3 {[%clk 0:01:16]}  Ba3 {[%clk 0:01:00]} 33. Nd5 {[%clk 0:01:10]}  Rf8 {[%clk 0:00:56]} 34. Kb1 {[%clk 0:00:45]}  f5 {[%clk 0:00:54]} 35. Qd3 {[%clk 0:00:37]}  f4 {[%clk 0:00:50]} 36. Nd2 {[%clk 0:00:25]}  Bd6 {[%clk 0:00:20]} 37. Nf3 {[%clk 0:00:25]}  Rc8 {[%clk 0:00:15]} 38. Rc1 {[%clk 0:00:25]}  Qd7 {[%clk 0:00:12]} 39. Rxc8+ {[%clk 0:00:24]}  Qxc8 {[%clk 0:00:13]} 40. Qc2 {[%clk 0:00:20]}  Qxc2+ {[%clk 0:00:11]} 41. Kxc2 {[%clk 0:00:21]}  Kxh7 {[%clk 0:00:09]} 42. Ng5+ {[%clk 0:00:21]}  Kxh6 {[%clk 0:00:09]} 43. Nf7+ {[%clk 0:00:22]}  Kh5 {[%clk 0:00:08]} 44. Nxd6 {[%clk 0:00:23]}  g5 {[%clk 0:00:09]} 45. Kd2 {[%clk 0:00:22]}  g4 {[%clk 0:00:09]} 46. Ke2 {[%clk 0:00:21]}  Kh4 {[%clk 0:00:09]} 47. Nf5+ {[%clk 0:00:20]}  Kh3 {[%clk 0:00:10]} 48. Nxf4+ {[%clk 0:00:20]}  exf4 {[%clk 0:00:09]} 49. e5 {[%clk 0:00:21]}  g3 {[%clk 0:00:07]} 50. e6 {[%clk 0:00:19]}  g2 {[%clk 0:00:06]} 51. Kf2 {[%clk 0:00:19]}  Kh2 {[%clk 0:00:06]} 52. e7 {[%clk 0:00:18]}  g1=Q+ {[%clk 0:00:06]} 53. Kf3 {[%clk 0:00:19]}  Qg2+ {[%clk 0:00:06]} 54. Kxf4 {[%clk 0:00:19]}  Qf2+ {[%clk 0:00:06]} 55. Kg5 {[%clk 0:00:18]}  Qe2 {[%clk 0:00:04]} 56. Kf6 {[%clk 0:00:18]}  b4 {[%clk 0:00:03]} 57. Nd6 {[%clk 0:00:17]}  Qf3+ {[%clk 0:00:02]} 58. Ke6 {[%clk 0:00:17]}  Qe2+ {[%clk 0:00:02]} 59. Kd7 {[%clk 0:00:18]}  Qg4+ {[%clk 0:00:02]} 60. Kc7 {[%clk 0:00:17]}  Qg7 {[%clk 0:00:01]} 61. Kd8 {[%clk 0:00:17]}  Qf6 {[%clk 0:00:01]} 62. Kd7 {[%clk 0:00:17]}  Qg7 {[%clk 0:00:01]} 63. Ke6 {[%clk 0:00:16]}  Qg6+ {[%clk 0:00:01]} 64. Kd7 {[%clk 0:00:16]} 1-0


[Site "https://www.chess.com"]

[Event "Titled Tuesday Blitz June 28 Early 2022"]
[White "Sargissyan, Sargis"]
[Black "Steinberg, Nitzan"]
[WhiteFideId "13303210"]
[BlackFideId "2801795"]
[WhiteElo "2174"]
[BlackElo "2471"]
[Result "0-1"]
[Round "11"]
[TimeControl "180+1"]
[Date "2022.06.28"]
[WhiteClock "0:00:11"]
[BlackClock "0:00:47"]

1. e4 {[%clk 0:03:00]}  g6 {[%clk 0:02:59]} 2. d4 {[%clk 0:03:00]}  Bg7 {[%clk 0:03:00]} 3. Nc3 {[%clk 0:03:01]}  d6 {[%clk 0:03:00]} 4. f4 {[%clk 0:03:01]}  a6 {[%clk 0:03:00]} 5. Nf3 {[%clk 0:03:02]}  b5 {[%clk 0:03:01]} 6. Bd3 {[%clk 0:03:02]}  Bb7 {[%clk 0:03:01]} 7. e5 {[%clk 0:02:59]}  c5 {[%clk 0:03:01]} 8. Ng5 {[%clk 0:02:43]}  Nh6 {[%clk 0:02:50]} 9. dxc5 {[%clk 0:02:24]}  dxe5 {[%clk 0:02:50]} 10. O-O {[%clk 0:02:14]}  Nd7 {[%clk 0:02:36]} 11. f5 {[%clk 0:01:52]}  Nxc5 {[%clk 0:02:33]} 12. fxg6 {[%clk 0:01:50]}  hxg6 {[%clk 0:02:15]} 13. Qe2 {[%clk 0:01:30]}  Nxd3 {[%clk 0:02:11]} 14. cxd3 {[%clk 0:01:29]}  Nf5 {[%clk 0:02:12]} 15. Nce4 {[%clk 0:01:12]}  Qd4+ {[%clk 0:02:09]} 16. Kh1 {[%clk 0:01:11]}  Rd8 {[%clk 0:02:09]} 17. Rf3 {[%clk 0:01:07]}  Qd5 {[%clk 0:01:46]} 18. Qf1 {[%clk 0:00:24]}  f6 {[%clk 0:01:38]} 19. Nh3 {[%clk 0:00:23]}  Nh4 {[%clk 0:01:12]} 20. Rg3 {[%clk 0:00:19]}  f5 {[%clk 0:01:12]} 21. Neg5 {[%clk 0:00:19]}  Bf6 {[%clk 0:01:11]} 22. Bd2 {[%clk 0:00:17]}  f4 {[%clk 0:00:52]} 23. Rg4 {[%clk 0:00:13]}  f3 {[%clk 0:00:47]} 24. gxf3 {[%clk 0:00:12]}  Nxf3 {[%clk 0:00:47]} 25. Nxf3 {[%clk 0:00:11]}  Qxf3+ {[%clk 0:00:47]} 0-1


[Site "https://www.chess.com"]

[Event "Titled Tuesday Blitz June 28 Early 2022"]
[White "Shuvalov, Evgenij"]
[Black "Adewumi, Tanitoluwa"]
[WhiteFideId "4187237"]
[BlackFideId "30966396"]
[WhiteElo "2023"]
[BlackElo "2661"]
[Result "1-0"]
[Round "11"]
[TimeControl "180+1"]
[Date "2022.06.28"]
[WhiteClock "0:00:12"]
[BlackClock "0:00:09"]

1. Nf3 {[%clk 0:03:00]}  Nf6 {[%clk 0:02:56]} 2. c4 {[%clk 0:03:00]}  e6 {[%clk 0:02:56]} 3. g3 {[%clk 0:03:00]}  d5 {[%clk 0:02:56]} 4. Bg2 {[%clk 0:03:01]}  Be7 {[%clk 0:02:57]} 5. O-O {[%clk 0:03:01]}  O-O {[%clk 0:02:58]} 6. b3 {[%clk 0:03:01]}  c6 {[%clk 0:02:57]} 7. Bb2 {[%clk 0:03:02]}  b6 {[%clk 0:02:58]} 8. e3 {[%clk 0:03:01]}  Bb7 {[%clk 0:02:58]} 9. Qe2 {[%clk 0:02:59]}  Nbd7 {[%clk 0:02:58]} 10. d3 {[%clk 0:02:59]}  Re8 {[%clk 0:02:59]} 11. e4 {[%clk 0:02:59]}  e5 {[%clk 0:02:30]} 12. Nxe5 {[%clk 0:02:20]}  Nxe5 {[%clk 0:02:25]} 13. Bxe5 {[%clk 0:02:21]}  dxe4 {[%clk 0:02:24]} 14. dxe4 {[%clk 0:02:17]}  Bc5 {[%clk 0:02:19]} 15. Bb2 {[%clk 0:01:58]}  Qe7 {[%clk 0:02:08]} 16. Nd2 {[%clk 0:01:51]}  Rad8 {[%clk 0:02:05]} 17. Rad1 {[%clk 0:01:49]}  Ba3 {[%clk 0:01:53]} 18. Ba1 {[%clk 0:01:42]}  Bc5 {[%clk 0:01:46]} 19. e5 {[%clk 0:01:37]}  Nd7 {[%clk 0:01:37]} 20. Ne4 {[%clk 0:01:01]}  Bb4 {[%clk 0:01:21]} 21. f4 {[%clk 0:00:54]}  Nc5 {[%clk 0:01:07]} 22. Qc2 {[%clk 0:00:33]}  Bc8 {[%clk 0:00:56]} 23. Nd6 {[%clk 0:00:26]}  Rf8 {[%clk 0:00:37]} 24. Bxc6 {[%clk 0:00:25]}  Bg4 {[%clk 0:00:30]} 25. Bf3 {[%clk 0:00:24]}  Bxf3 {[%clk 0:00:30]} 26. Rxf3 {[%clk 0:00:25]}  Ne6 {[%clk 0:00:30]} 27. Rfd3 {[%clk 0:00:23]}  Bc5+ {[%clk 0:00:20]} 28. Kh1 {[%clk 0:00:23]}  f6 {[%clk 0:00:18]} 29. Nf5 {[%clk 0:00:15]}  Qf7 {[%clk 0:00:12]} 30. exf6 {[%clk 0:00:13]}  Rxd3 {[%clk 0:00:08]} 31. Qxd3 {[%clk 0:00:12]}  Qb7+ {[%clk 0:00:02]} 32. Qd5 {[%clk 0:00:12]}  Qxd5+ {[%clk 0:00:03]} 33. cxd5 {[%clk 0:00:13]}  Nc7 {[%clk 0:00:03]} 34. Ne7+ {[%clk 0:00:08]}  Kf7 {[%clk 0:00:02]} 35. d6 {[%clk 0:00:06]}  Ne6 {[%clk 0:00:02]} 36. fxg7 {[%clk 0:00:06]}  Re8 {[%clk 0:00:01]} 37. g8=Q+ {[%clk 0:00:04]}  Rxg8 {[%clk 0:00:02]} 38. Nxg8 {[%clk 0:00:05]}  Kxg8 {[%clk 0:00:02]} 39. d7 {[%clk 0:00:06]}  Be7 {[%clk 0:00:03]} 40. Re1 {[%clk 0:00:05]}  Kf7 {[%clk 0:00:03]} 41. f5 {[%clk 0:00:04]}  Nc5 {[%clk 0:00:03]} 42. f6 {[%clk 0:00:03]}  Bd8 {[%clk 0:00:03]} 43. Re8 {[%clk 0:00:03]}  Bc7 {[%clk 0:00:02]} 44. d8=Q {[%clk 0:00:03]}  Bxd8 {[%clk 0:00:03]} 45. Rxd8 {[%clk 0:00:04]}  Ne6 {[%clk 0:00:04]} 46. Rd7+ {[%clk 0:00:04]}  Kg6 {[%clk 0:00:04]} 47. Rxa7 {[%clk 0:00:05]}  b5 {[%clk 0:00:04]} 48. Ra6 {[%clk 0:00:06]}  Nc5 {[%clk 0:00:04]} 49. Bd4 {[%clk 0:00:05]}  Nxa6 {[%clk 0:00:04]} 50. a4 {[%clk 0:00:04]}  b4 {[%clk 0:00:03]} 51. Kg2 {[%clk 0:00:03]}  Nc7 {[%clk 0:00:03]} 52. Kf3 {[%clk 0:00:03]}  Ne6 {[%clk 0:00:03]} 53. Ke4 {[%clk 0:00:03]}  Ng5+ {[%clk 0:00:03]} 54. Kd5 {[%clk 0:00:03]}  Nf3 {[%clk 0:00:04]} 55. h4 {[%clk 0:00:03]}  h5 {[%clk 0:00:03]} 56. a5 {[%clk 0:00:02]}  Kf7 {[%clk 0:00:02]} 57. a6 {[%clk 0:00:02]}  Nxd4 {[%clk 0:00:01]} 58. Kxd4 {[%clk 0:00:02]}  Kxf6 {[%clk 0:00:02]} 59. a7 {[%clk 0:00:03]}  Kf5 {[%clk 0:00:03]} 60. a8=Q {[%clk 0:00:04]}  Kg4 {[%clk 0:00:03]} 61. Qe4+ {[%clk 0:00:04]}  Kh3 {[%clk 0:00:04]} 62. Qf4 {[%clk 0:00:04]}  Kg2 {[%clk 0:00:04]} 63. Qg5 {[%clk 0:00:05]}  Kh3 {[%clk 0:00:04]} 64. Qxh5 {[%clk 0:00:06]}  Kg2 {[%clk 0:00:05]} 65. Qg5 {[%clk 0:00:07]}  Kh3 {[%clk 0:00:06]} 66. h5 {[%clk 0:00:08]}  Kg2 {[%clk 0:00:06]} 67. h6 {[%clk 0:00:09]}  Kf3 {[%clk 0:00:07]} 68. h7 {[%clk 0:00:09]}  Ke2 {[%clk 0:00:07]} 69. h8=Q {[%clk 0:00:10]}  Kf3 {[%clk 0:00:07]} 70. Qhf6+ {[%clk 0:00:10]}  Kg2 {[%clk 0:00:07]} 71. Qgg7 {[%clk 0:00:09]}  Kh3 {[%clk 0:00:07]} 72. g4 {[%clk 0:00:10]}  Kg3 {[%clk 0:00:07]} 73. g5 {[%clk 0:00:11]}  Kg4 {[%clk 0:00:08]} 74. g6 {[%clk 0:00:12]}  Kh5 {[%clk 0:00:08]} 75. Qh7+ {[%clk 0:00:12]}  Kg4 {[%clk 0:00:09]} 76. g7 {[%clk 0:00:12]} 1-0


[Site "https://www.chess.com"]

[Event "Titled Tuesday Blitz June 28 Early 2022"]
[White "Simonovic, Miroslav"]
[Black "Sahil, Tickoo"]
[WhiteFideId "919152"]
[BlackFideId "5019710"]
[WhiteElo "2043"]
[BlackElo "2047"]
[Result "0-1"]
[Round "11"]
[TimeControl "180+1"]
[Date "2022.06.28"]
[WhiteClock "0:00:10"]
[BlackClock "0:00:43"]

1. d4 {[%clk 0:03:00]}  d5 {[%clk 0:02:59]} 2. Bg5 {[%clk 0:03:01]}  c6 {[%clk 0:02:57]} 3. e3 {[%clk 0:03:01]}  Bf5 {[%clk 0:02:57]} 4. Bd3 {[%clk 0:03:00]}  Bxd3 {[%clk 0:02:56]} 5. Qxd3 {[%clk 0:03:01]}  Nd7 {[%clk 0:02:56]} 6. f4 {[%clk 0:02:59]}  Ngf6 {[%clk 0:02:57]} 7. Nd2 {[%clk 0:02:59]}  e6 {[%clk 0:02:56]} 8. Ngf3 {[%clk 0:02:58]}  Be7 {[%clk 0:02:57]} 9. O-O-O {[%clk 0:02:53]}  c5 {[%clk 0:02:53]} 10. c3 {[%clk 0:02:49]}  Qc7 {[%clk 0:02:50]} 11. e4 {[%clk 0:02:44]}  dxe4 {[%clk 0:02:46]} 12. Nxe4 {[%clk 0:02:45]}  Nxe4 {[%clk 0:02:40]} 13. Qxe4 {[%clk 0:02:46]}  Bxg5 {[%clk 0:02:34]} 14. Nxg5 {[%clk 0:02:45]}  Nf6 {[%clk 0:02:33]} 15. Qe5 {[%clk 0:02:27]}  Rc8 {[%clk 0:02:25]} 16. Rhe1 {[%clk 0:02:14]}  h6 {[%clk 0:02:20]} 17. Nf3 {[%clk 0:01:51]}  cxd4 {[%clk 0:02:18]} 18. Nxd4 {[%clk 0:01:46]}  Qxe5 {[%clk 0:02:15]} 19. Rxe5 {[%clk 0:01:47]}  O-O {[%clk 0:02:13]} 20. f5 {[%clk 0:01:43]}  exf5 {[%clk 0:02:07]} 21. Nxf5 {[%clk 0:01:42]}  Rc7 {[%clk 0:02:06]} 22. h3 {[%clk 0:01:40]}  h5 {[%clk 0:02:02]} 23. Rde1 {[%clk 0:01:14]}  g6 {[%clk 0:01:55]} 24. Nd6 {[%clk 0:01:06]}  Rd8 {[%clk 0:01:50]} 25. Nb5 {[%clk 0:01:01]}  Rcd7 {[%clk 0:01:47]} 26. Nxa7 {[%clk 0:00:59]}  Ra8 {[%clk 0:01:45]} 27. Nb5 {[%clk 0:00:52]}  Rxa2 {[%clk 0:01:44]} 28. Kc2 {[%clk 0:00:52]}  Ra8 {[%clk 0:01:41]} 29. Re7 {[%clk 0:00:50]}  Rad8 {[%clk 0:01:40]} 30. Nd4 {[%clk 0:00:46]}  Kf8 {[%clk 0:01:37]} 31. Rxd7 {[%clk 0:00:45]}  Rxd7 {[%clk 0:01:36]} 32. b4 {[%clk 0:00:45]}  Nd5 {[%clk 0:01:33]} 33. Kb3 {[%clk 0:00:31]}  Nf4 {[%clk 0:01:30]} 34. Rg1 {[%clk 0:00:22]}  h4 {[%clk 0:01:28]} 35. Nf3 {[%clk 0:00:18]}  Rd3 {[%clk 0:01:20]} 36. Kc2 {[%clk 0:00:16]}  Re3 {[%clk 0:01:17]} 37. Nxh4 {[%clk 0:00:16]}  Re2+ {[%clk 0:01:06]} 38. Kb3 {[%clk 0:00:14]}  g5 {[%clk 0:01:03]} 39. Nf3 {[%clk 0:00:14]}  f6 {[%clk 0:01:03]} 40. h4 {[%clk 0:00:12]}  g4 {[%clk 0:00:58]} 41. Nd4 {[%clk 0:00:12]}  Rxg2 {[%clk 0:00:44]} 42. Rxg2 {[%clk 0:00:06]}  Nxg2 {[%clk 0:00:44]} 43. Nf5 {[%clk 0:00:06]}  b6 {[%clk 0:00:37]} 44. Kc4 {[%clk 0:00:07]}  Kf7 {[%clk 0:00:38]} 45. Kb5 {[%clk 0:00:06]}  Ke6 {[%clk 0:00:38]} 46. Ng3 {[%clk 0:00:03]}  f5 {[%clk 0:00:37]} 47. Kxb6 {[%clk 0:00:03]}  f4 {[%clk 0:00:38]} 48. Nf1 {[%clk 0:00:03]}  Ne3 {[%clk 0:00:37]} 49. h5 {[%clk 0:00:02]}  Nxf1 {[%clk 0:00:36]} 50. h6 {[%clk 0:00:02]}  Kf6 {[%clk 0:00:37]} 51. c4 {[%clk 0:00:03]}  g3 {[%clk 0:00:37]} 52. c5 {[%clk 0:00:03]}  g2 {[%clk 0:00:37]} 53. c6 {[%clk 0:00:02]}  g1=Q+ {[%clk 0:00:37]} 54. Kb7 {[%clk 0:00:03]}  Qd4 {[%clk 0:00:35]} 55. c7 {[%clk 0:00:02]}  Qxb4+ {[%clk 0:00:35]} 56. Ka8 {[%clk 0:00:03]}  Qa5+ {[%clk 0:00:34]} 57. Kb8 {[%clk 0:00:03]}  Qxc7+ {[%clk 0:00:35]} 58. Kxc7 {[%clk 0:00:02]}  f3 {[%clk 0:00:36]} 59. h7 {[%clk 0:00:02]}  Kg7 {[%clk 0:00:36]} 60. Kd6 {[%clk 0:00:03]}  f2 {[%clk 0:00:37]} 61. Ke5 {[%clk 0:00:04]}  Ne3 {[%clk 0:00:37]} 62. Kf4 {[%clk 0:00:05]}  f1=Q+ {[%clk 0:00:38]} 63. Kxe3 {[%clk 0:00:06]}  Kxh7 {[%clk 0:00:39]} 64. Ke4 {[%clk 0:00:06]}  Kg6 {[%clk 0:00:39]} 65. Ke5 {[%clk 0:00:07]}  Qf5+ {[%clk 0:00:40]} 66. Kd4 {[%clk 0:00:08]}  Qf6+ {[%clk 0:00:40]} 67. Kd3 {[%clk 0:00:08]}  Kf5 {[%clk 0:00:41]} 68. Ke3 {[%clk 0:00:09]}  Qe5+ {[%clk 0:00:42]} 69. Kd3 {[%clk 0:00:10]}  Qe4+ {[%clk 0:00:43]} 0-1


[Site "https://www.chess.com"]